bitfinex-derivatives/quotes_BTCF0:USTF0_20210705
["timestamp","ask_amount","ask_price","bid_price","bid_amount"]
[1625488660515,0.0874308,33488.0,33487.0,0.00400572]
[1625488660615,0.0874308,33488.0,33487.0,0.06300572]
[1625488661065,0.0874308,33488.0,33487.0,3.87700572]
[1625488661165,0.0874308,33488.0,33487.0,3.93600572]
[1625488661571,0.50268433,33489.0,33487.0,3.93600572]
[1625488661820,0.50268433,33489.0,33488.0,0.00400569]
[1625488661919,0.50268433,33489.0,33488.0,0.06300569]
[1625488662119,0.85187559,33489.0,33488.0,0.06300569]
[1625488662921,0.50268433,33489.0,33488.0,0.06300569]
[1625488663021,0.50268433,33489.0,33488.0,0.30358113]
[1625488664574,0.50268433,33489.0,33488.0,0.36258113]
[1625488664776,0.50268433,33489.0,33488.0,0.56258113]
[1625488665027,0.32799724,33489.0,33488.0,0.56258113]
[1625488665678,0.24057544,33489.0,33488.0,1.96921486]
[1625488669691,0.61143746,33493.0,33488.0,1.96921486]
[1625488669994,0.61143746,33493.0,33488.0,0.56258113]
[1625488670196,0.61143746,33493.0,33489.0,0.00400378]
[1625488670296,0.61143746,33493.0,33489.0,0.06300378]
[1625488670398,0.61143746,33493.0,33489.0,0.12200378]
[1625488670496,0.26213452,33494.0,33489.0,1.52814124]
[1625488670850,0.26213452,33494.0,33490.0,0.00400242]
[1625488670948,0.26213452,33494.0,33490.0,0.12200242]
[1625488671047,0.08743635,33494.0,33493.0,0.24057544]
[1625488671148,0.08743635,33494.0,33493.0,0.57174544]
[1625488671249,0.08743635,33494.0,33493.0,0.63074544]
[1625488671347,0.08743635,33494.0,33493.0,0.63474755]
[1625488671600,0.24057544,33496.0,33493.0,0.63474755]
[1625488672249,0.24057544,33496.0,33494.0,0.00400385]
[1625488672350,0.24057544,33496.0,33494.0,0.12200385]
[1625488672748,0.24057544,33496.0,33494.0,0.118]
[1625488677108,0.08735608,33498.0,33494.0,0.118]
[1625488678370,0.26170935,33498.0,33494.0,0.059]
[1625488678473,0.32070935,33498.0,33494.0,0.059]
[1625488678778,0.60960858,33495.0,33494.0,0.059]
[1625488678864,0.90704858,33495.0,33494.0,0.059]
[1625488679166,1.51565846,33495.0,33494.0,0.059]
[1625488680918,1.51565846,33495.0,33493.0,0.24057544]
[1625488681017,1.51565846,33495.0,33493.0,0.29957544]
[1625488681120,0.24057544,33494.0,33493.0,0.29957544]
[1625488681219,0.76281274,33494.0,33493.0,0.29957544]
[1625488681320,1.03215274,33494.0,33493.0,0.29957544]
[1625488682320,1.03215274,33494.0,33493.0,0.24057544]
[1625488682419,1.03215274,33494.0,33493.0,0.29957544]
[1625488683024,1.72822568,33494.0,33493.0,0.29957544]
[1625488684375,2.77246866,33494.0,33493.0,0.29957544]
[1625488684523,2.77246866,33494.0,33493.0,0.30359815]
[1625488684824,2.77246866,33494.0,33493.0,0.24459815]
[1625488684924,2.77246866,33494.0,33493.0,0.30359815]
[1625488685373,1.03215274,33494.0,33493.0,0.30359815]
[1625488686328,0.327822,33494.0,33493.0,0.30359815]
[1625488686778,0.24057544,33494.0,33493.0,0.61058815]
[1625488687727,0.24057544,33494.0,33493.0,0.66958815]
[1625488691385,0.2616701,33497.0,33493.0,0.66958815]
[1625488691492,0.69701527,33499.0,33493.0,0.66958815]
[1625488691705,0.69701527,33499.0,33494.0,0.01129744]
[1625488691785,0.69701527,33499.0,33494.0,0.08315365]
[1625488691887,0.69701527,33499.0,33494.0,0.14215365]
[1625488691985,1.51922483,33502.0,33498.0,1.22862717]
[1625488691986,0.2929,33502.0,33498.0,1.22862717]
[1625488692085,0.2929,33502.0,33498.0,1.28762717]
[1625488692190,0.2929,33502.0,33498.0,1.34662717]
[1625488692339,0.2929,33502.0,33500.0,1.2245963]
[1625488692440,0.2929,33502.0,33500.0,1.5237263]
[1625488692639,0.2929,33502.0,33501.0,0.00401381]
[1625488692739,0.2929,33502.0,33501.0,0.06301381]
[1625488692841,0.2929,33502.0,33501.0,0.12201381]
[1625488693244,0.2929,33502.0,33501.0,0.60316469]
[1625488695896,0.2929,33502.0,33501.0,0.54416469]
[1625488696947,0.24057544,33507.0,33501.0,0.54416469]
[1625488697047,0.94198612,33510.0,33501.0,0.60316469]
[1625488697149,0.70141068,33510.0,33501.0,0.60316469]
[1625488697247,0.70141068,33510.0,33509.0,0.48115088]
[1625488697348,0.70141068,33510.0,33509.0,0.76309088]
[1625488697447,0.70141068,33510.0,33509.0,0.82209088]
[1625488697549,0.70141068,33510.0,33509.0,6.00509088]
[1625488697647,0.70141068,33510.0,33509.0,6.00911043]
[1625488697799,0.94169885,33513.0,33509.0,6.00911043]
[1625488698099,0.94169885,33513.0,33509.0,6.06811043]
[1625488698200,0.94169885,33513.0,33510.0,0.00401951]
[1625488698299,0.94169885,33513.0,33510.0,0.06301951]
[1625488698750,0.94169885,33513.0,33511.0,0.00401932]
[1625488698848,0.94169885,33513.0,33511.0,0.06301932]
[1625488699099,0.24057544,33513.0,33511.0,0.06301932]
[1625488699298,0.24057544,33513.0,33512.0,0.0040191]
[1625488699399,0.24057544,33513.0,33512.0,0.0630191]
[1625488700351,0.24057544,33513.0,33512.0,0.059]
[1625488700958,0.32927544,33513.0,33512.0,0.059]
[1625488701104,0.32927544,33513.0,33509.0,5.94609088]
[1625488701203,0.32927544,33513.0,33512.0,0.059]
[1625488701806,0.32927544,33513.0,33512.0,0.06301923]
[1625488702054,0.32927544,33513.0,33512.0,0.059]
[1625488705114,0.32927544,33513.0,33512.0,0.118]
[1625488705214,0.32927544,33513.0,33512.0,0.38042]
[1625488705514,0.24057544,33513.0,33512.0,0.38042]
[1625488708468,0.2929,33516.0,33512.0,0.38042]
[1625488709319,0.2929,33516.0,33515.0,0.48115088]
[1625488709521,0.2929,33516.0,33515.0,0.54015088]
[1625488712830,0.99396135,33516.0,33515.0,0.54015088]
[1625488713031,1.05296135,33516.0,33515.0,0.54015088]
[1625488713232,2.10454502,33516.0,33515.0,0.54015088]
[1625488713733,3.33139265,33516.0,33515.0,0.54015088]
[1625488714582,2.10454502,33516.0,33515.0,0.54015088]
[1625488714687,2.42050502,33516.0,33515.0,0.54015088]
[1625488715186,3.6484531,33516.0,33515.0,0.54015088]
[1625488715636,2.36150502,33516.0,33515.0,0.54015088]
[1625488715736,2.04554502,33516.0,33515.0,0.54015088]
[1625488716636,2.04554502,33516.0,33515.0,0.59915088]
[1625488717092,3.27391608,33516.0,33515.0,0.59915088]
[1625488717293,3.27391608,33516.0,33515.0,0.60320515]
[1625488717592,0.99396135,33516.0,33515.0,0.60320515]
[1625488718494,2.04670567,33516.0,33515.0,0.60320515]
[1625488720999,2.04670567,33516.0,33515.0,0.88316515]
[1625488721201,1.75380567,33516.0,33515.0,0.88316515]
[1625488721303,0.70196155,33518.0,33515.0,0.88316515]
[1625488721403,0.70196155,33518.0,33517.0,0.24057544]
[1625488721536,0.70196155,33518.0,33517.0,0.35857544]
[1625488721702,1.61347753,33522.0,33517.0,0.35857544]
[1625488721802,1.61347753,33522.0,33517.0,0.36262878]
[1625488722052,1.61347753,33522.0,33518.0,0.00405326]
[1625488722152,1.61347753,33522.0,33518.0,0.06305326]
[1625488722252,0.70187753,33522.0,33518.0,0.12205326]
[1625488722553,0.70187753,33522.0,33519.0,0.00405317]
[1625488722653,0.70187753,33522.0,33519.0,0.06305317]
[1625488722753,0.70187753,33522.0,33519.0,0.12205317]
[1625488723152,0.70187753,33522.0,33520.0,0.0040533]
[1625488723252,0.70187753,33522.0,33520.0,0.0630533]
[1625488723404,0.70187753,33522.0,33521.0,0.48115088]
[1625488723604,0.70187753,33522.0,33521.0,0.6032041]
[1625488724353,1.05272858,33523.0,33521.0,0.6032041]
[1625488724354,0.70189814,33523.0,33521.0,0.6032041]
[1625488724755,1.05278016,33523.0,33522.0,0.00405322]
[1625488724855,1.05278016,33523.0,33522.0,0.06305322]
[1625488724956,1.05278016,33523.0,33522.0,0.37480322]
[1625488725155,1.75468849,33523.0,33522.0,0.37480322]
[1625488725457,1.75468849,33523.0,33522.0,0.61537866]
[1625488725658,0.70190833,33523.0,33522.0,0.61537866]
[1625488725907,0.70190833,33523.0,33522.0,0.55637866]
[1625488726210,1.75446166,33523.0,33522.0,0.55637866]
[1625488726511,1.75446166,33523.0,33522.0,4.99217866]
[1625488726611,0.70190833,33523.0,33522.0,4.99217866]
[1625488727662,0.79160833,33523.0,33522.0,4.99217866]
[1625488728666,0.70190833,33523.0,33522.0,4.99217866]
[1625488728762,0.70151847,33526.0,33522.0,4.99217866]
[1625488729165,0.70157265,33529.0,33522.0,4.99217866]
[1625488729267,0.70157265,33529.0,33523.0,0.00405244]
[1625488729364,0.70157265,33529.0,33523.0,0.06305244]
[1625488729464,0.70157265,33529.0,33523.0,0.12205244]
[1625488729564,0.70157265,33529.0,33528.0,0.48115088]
[1625488729664,0.70157265,33529.0,33528.0,0.59915088]
[1625488729864,0.70157265,33529.0,33528.0,0.60320329]
[1625488729966,0.70157265,33529.0,33522.0,0.24057544]
[1625488730064,1.02217265,33529.0,33520.0,1.21875625]
[1625488730268,1.08117265,33529.0,33520.0,1.21875625]
[1625488730365,1.05185339,33522.0,33521.0,0.0040489]
[1625488730467,1.41449339,33522.0,33521.0,0.0040489]
[1625488730664,1.47349339,33522.0,33518.0,0.00404919]
[1625488730766,2.70072739,33522.0,33518.0,0.00404919]
[1625488730967,1.47349339,33522.0,33518.0,0.00404919]
[1625488731067,1.75347265,33519.0,33518.0,0.00404919]
[1625488731181,1.87147265,33519.0,33518.0,0.00404919]
[1625488731571,2.83377441,33519.0,33518.0,0.00404919]
[1625488731817,2.83377441,33519.0,33511.0,0.9349]
[1625488731920,4.06133469,33519.0,33511.0,0.9349]
[1625488732217,2.9813671,33518.0,33511.0,0.9349]
[1625488732317,3.0993671,33518.0,33511.0,0.9349]
[1625488732868,4.50233331,33518.0,33511.0,0.9349]
[1625488733169,4.50233331,33518.0,33511.0,5.2031]
[1625488733470,4.50233331,33518.0,33517.0,0.2040541]
[1625488733671,3.45009641,33518.0,33517.0,0.2040541]
[1625488734772,3.45009641,33518.0,33517.0,0.2]
[1625488735273,1.52096621,33518.0,33517.0,0.2]
[1625488735473,0.118,33518.0,33517.0,0.2]
[1625488736124,2.74953414,33518.0,33517.0,0.2]
[1625488736775,4.50400475,33518.0,33517.0,0.2]
[1625488737326,1.87247061,33518.0,33517.0,0.2]
[1625488737525,4.50400638,33518.0,33517.0,0.2]
[1625488739784,3.80218305,33518.0,33517.0,0.2]
[1625488739984,4.50456891,33518.0,33517.0,0.2]
[1625488740234,4.44556891,33518.0,33517.0,0.2]
[1625488740339,4.50456891,33518.0,33517.0,0.2]
[1625488745002,0.118,33518.0,33517.0,0.2]
[1625488745504,4.51114518,33518.0,33517.0,0.2]
[1625488750266,6.09581715,33518.0,33517.0,0.2]
[1625488750564,4.51114518,33518.0,33517.0,0.2]
[1625488750915,4.51114518,33518.0,33517.0,0.20405578]
[1625488754173,4.45214518,33518.0,33517.0,0.20405578]
[1625488754374,4.39314518,33518.0,33517.0,0.20405578]
[1625488754726,2.98738792,33518.0,33517.0,0.20405578]
[1625488755126,1.75732835,33518.0,33517.0,0.20405578]
[1625488755577,1.75732835,33518.0,33517.0,1.42404455]
[1625488755830,1.75732835,33518.0,33517.0,1.66461999]
[1625488757434,1.75732835,33518.0,33517.0,0.44463122]
[1625488757886,1.75732835,33518.0,33517.0,1.66291905]
[1625488757887,0.70296648,33518.0,33517.0,1.66291905]
[1625488758336,1.75985059,33518.0,33517.0,1.66291905]
[1625488758839,1.81885059,33518.0,33517.0,1.66291905]
[1625488759037,1.81885059,33518.0,33517.0,0.44463122]
[1625488759339,3.05195486,33518.0,33517.0,0.44463122]
[1625488761345,4.46121473,33518.0,33517.0,0.44463122]
[1625488761745,4.40221473,33518.0,33517.0,0.44463122]
[1625488762049,2.99295486,33518.0,33517.0,0.44463122]
[1625488765304,3.05195486,33518.0,33517.0,0.44463122]
[1625488765918,3.05195486,33518.0,33517.0,0.20405578]
[1625488766008,3.11095486,33518.0,33517.0,0.20405578]
[1625488766118,4.5204557,33518.0,33517.0,0.20405578]
[1625488766657,4.5204557,33518.0,33512.0,0.24057544]
[1625488766658,6.10619142,33518.0,33512.0,0.24057544]
[1625488766957,6.10619142,33518.0,33510.0,1.22064069]
[1625488767059,6.10619142,33518.0,33507.0,1.22403842]
[1625488767060,4.40534272,33513.0,33507.0,1.22403842]
[1625488767160,4.68254272,33513.0,33507.0,1.22403842]
[1625488767259,4.80054272,33513.0,33507.0,1.22403842]
[1625488767460,4.80054272,33513.0,33509.0,0.00404913]
[1625488767662,1.58598312,33510.0,33509.0,0.00404913]
[1625488767759,1.58598312,33510.0,33508.0,0.0040494]
[1625488767860,1.70398312,33510.0,33508.0,0.0040494]
[1625488768060,0.54015088,33509.0,33507.0,0.00404943]
[1625488768162,4.9459724,33509.0,33507.0,0.00404943]
[1625488768261,5.0049724,33509.0,33507.0,0.00404943]
[1625488768363,5.0049724,33509.0,33508.0,0.00404949]
[1625488768612,5.0049724,33509.0,33507.0,0.00404946]
[1625488769314,4.40426599,33508.0,33507.0,0.00404946]
[1625488769413,4.52226599,33508.0,33507.0,0.00404946]
[1625488770665,4.52226599,33508.0,33507.0,0.20404946]
[1625488772823,3.11295019,33508.0,33507.0,0.20404946]
[1625488773721,3.11295019,33508.0,33507.0,0.2]
[1625488774021,3.11295019,33508.0,33507.0,0.2040487]
[1625488774272,1.87977685,33508.0,33507.0,0.2040487]
[1625488776075,2.13661685,33508.0,33507.0,0.2040487]
[1625488776276,2.07761685,33508.0,33507.0,0.2040487]
[1625488779036,2.79934317,33508.0,33507.0,0.2040487]
[1625488779335,2.85834317,33508.0,33507.0,0.2040487]
[1625488779887,2.79934317,33508.0,33507.0,0.2040487]
[1625488780590,1.74231229,33508.0,33507.0,0.2040487]
[1625488780688,1.48547229,33508.0,33507.0,0.2040487]
[1625488781592,2.01354603,33508.0,33507.0,0.2040487]
[1625488781943,2.07254603,33508.0,33507.0,0.2040487]
[1625488782192,2.07254603,33508.0,33507.0,0.2]
[1625488782342,2.07254603,33508.0,33507.0,0.20404973]
[1625488782641,1.36780006,33508.0,33507.0,0.20404973]
[1625488783092,2.01285483,33508.0,33507.0,0.20404973]
[1625488784146,2.01285483,33508.0,33507.0,1.42809317]
[1625488784555,2.01285483,33508.0,33507.0,1.72554317]
[1625488784652,1.30880006,33508.0,33507.0,1.72554317]
[1625488785557,1.24980006,33508.0,33507.0,1.72554317]
[1625488785756,0.72172632,33508.0,33507.0,1.78454317]
[1625488786159,0.72172632,33508.0,33507.0,0.56049973]
[1625488786607,0.48115088,33508.0,33507.0,0.56049973]
[1625488786714,0.24057544,33508.0,33507.0,0.61949973]
[1625488786809,0.24057544,33508.0,33507.0,3.2425002]
[1625488787057,0.52817631,33510.0,33507.0,3.49434287]
[1625488787257,0.52817631,33510.0,33508.0,0.01126716]
[1625488787457,0.52814057,33513.0,33508.0,0.07431572]
[1625488787658,0.52814057,33513.0,33509.0,0.01530725]
[1625488787758,0.70412877,33514.0,33509.0,1.58659114]
[1625488787859,1.47290856,33515.0,33512.0,2.61880648]
[1625488787958,1.47290856,33515.0,33512.0,7.74200648]
[1625488788207,0.76874335,33515.0,33514.0,1.22189327]
[1625488788307,0.76874335,33515.0,33514.0,1.53058327]
[1625488788407,0.76874335,33515.0,33514.0,1.58958327]
[1625488788506,0.76874335,33515.0,33514.0,1.59363149]
[1625488789106,0.76874335,33515.0,33514.0,2.01578237]
[1625488789409,0.82774335,33515.0,33514.0,2.01578237]
[1625488789510,0.82774335,33515.0,33514.0,2.07478237]
[1625488789610,1.53238697,33515.0,33514.0,2.07478237]
[1625488789709,1.53238697,33515.0,33514.0,2.01578237]
[1625488789909,1.53238697,33515.0,33514.0,2.07478237]
[1625488790009,1.53238697,33515.0,33514.0,2.01578237]
[1625488790312,2.58929126,33515.0,33514.0,2.01578237]
[1625488790760,2.58929126,33515.0,33514.0,1.70709237]
[1625488791666,2.53029126,33515.0,33514.0,1.70709237]
[1625488791767,2.53029126,33515.0,33514.0,1.95633237]
[1625488792066,1.47338697,33515.0,33514.0,1.95633237]
[1625488792568,2.58920215,33515.0,33514.0,1.95633237]
[1625488793268,2.58920215,33515.0,33514.0,1.70709237]
[1625488793673,2.58920215,33515.0,33514.0,0.4851991]
[1625488793870,2.53020215,33515.0,33514.0,0.4851991]
[1625488794071,2.53020215,33515.0,33514.0,1.70854199]
[1625488794421,1.47338697,33515.0,33514.0,1.70854199]
[1625488794922,1.47338697,33515.0,33514.0,1.76754199]
[1625488795272,1.47338697,33515.0,33514.0,1.70854199]
[1625488795473,1.53238697,33515.0,33514.0,1.76754199]
[1625488795572,1.53238697,33515.0,33514.0,1.70854199]
[1625488796174,2.58911441,33515.0,33514.0,0.4851991]
[1625488798429,2.53011441,33515.0,33514.0,0.4851991]
[1625488798633,1.47338697,33515.0,33514.0,1.70766727]
[1625488800192,1.53238697,33515.0,33514.0,1.70766727]
[1625488800509,2.89866096,33515.0,33514.0,0.24462366]
[1625488800616,2.89866096,33515.0,33514.0,0.00404822]
[1625488800839,4.13151728,33515.0,33514.0,0.00404822]
[1625488800937,4.19051728,33515.0,33514.0,0.00404822]
[1625488801240,5.78108084,33515.0,33514.0,0.00404822]
[1625488801339,5.78108084,33515.0,33513.0,0.00404236]
[1625488801440,5.84008084,33515.0,33513.0,0.00404236]
[1625488801795,4.93179866,33514.0,33513.0,0.00404236]
[1625488801941,4.99079866,33514.0,33513.0,0.00404236]
[1625488802292,5.04979866,33514.0,33513.0,0.00404236]
[1625488805196,6.63503643,33514.0,33513.0,0.00404236]
[1625488806197,6.63503643,33514.0,33512.0,5.0642]
[1625488806599,6.51664628,33513.0,33512.0,5.0642]
[1625488806698,6.57564628,33513.0,33512.0,5.0642]
[1625488806898,6.63464628,33513.0,33507.0,0.44057544]
[1625488807101,6.63464628,33513.0,33512.0,0.00404294]
[1625488807301,6.87522172,33513.0,33508.0,0.00404294]
[1625488807550,6.87522172,33513.0,33512.0,0.004043]
[1625488807851,5.29017245,33513.0,33512.0,0.004043]
[1625488807950,5.29017245,33513.0,33509.0,0.00404284]
[1625488808152,5.29017245,33513.0,33512.0,0.00404284]
[1625488808302,0.35857544,33513.0,33512.0,0.00404284]
[1625488808407,0.35857544,33513.0,33509.0,0.00404295]
[1625488808652,0.35857544,33513.0,33512.0,0.00404299]
[1625488808902,0.35857544,33513.0,33509.0,0.00404295]
[1625488809258,0.24057544,33510.0,33509.0,0.00404295]
[1625488809356,0.29957544,33510.0,33509.0,0.00404295]
[1625488809461,0.35857544,33510.0,33509.0,0.00404295]
[1625488809758,0.29957544,33510.0,33509.0,0.00404295]
[1625488809855,0.35857544,33510.0,33509.0,0.00404295]
[1625488814919,0.35857544,33510.0,33509.0,0.20404295]
[1625488815220,1.76737005,33510.0,33509.0,0.20404295]
[1625488818829,1.70837005,33510.0,33509.0,0.20404295]
[1625488818927,1.64937005,33510.0,33509.0,0.20404295]
[1625488819385,1.70837005,33510.0,33509.0,0.20404295]
[1625488819829,1.64937005,33510.0,33509.0,0.20404295]
[1625488820028,1.70837005,33510.0,33509.0,0.20404295]
[1625488820329,1.76737005,33510.0,33509.0,0.20404295]
[1625488821733,1.76737005,33510.0,33509.0,0.2]
[1625488821933,1.76737005,33510.0,33509.0,0.20404466]
[1625488823286,0.35857544,33510.0,33509.0,0.20404466]
[1625488823387,3.88268075,33510.0,33509.0,0.20404466]
[1625488830749,3.89818898,33510.0,33509.0,0.20404466]
[1625488836263,0.37408367,33510.0,33509.0,0.20404466]
[1625488836967,5.30898571,33510.0,33509.0,0.20404466]
[1625488837068,5.24998571,33510.0,33509.0,0.20404466]
[1625488837267,5.30898571,33510.0,33509.0,0.20404466]
[1625488838768,5.24998571,33510.0,33509.0,0.20404466]
[1625488838968,5.30898571,33510.0,33509.0,0.20404466]
[1625488839069,5.24998571,33510.0,33509.0,0.20404466]
[1625488839170,5.29347748,33510.0,33509.0,0.20404466]
[1625488842232,3.88358099,33510.0,33509.0,0.20404466]
[1625488842985,5.29348113,33510.0,33509.0,0.20404466]
[1625488843635,5.30898933,33510.0,33509.0,0.20404466]
[1625488850097,6.89564601,33510.0,33509.0,0.20404466]
[1625488851103,5.30898933,33510.0,33509.0,0.20404466]
[1625488851253,5.29348113,33510.0,33509.0,0.20404466]
[1625488852855,5.23448113,33510.0,33509.0,0.20404466]
[1625488854358,5.29348113,33510.0,33509.0,0.20404466]
[1625488856717,5.30899199,33510.0,33509.0,0.20404466]
[1625488856819,5.55172199,33510.0,33509.0,0.20404466]
[1625488857218,7.13982921,33510.0,33509.0,0.20404466]
[1625488858022,7.22952921,33510.0,33509.0,0.20404466]
[1625488858122,7.13982921,33510.0,33509.0,0.20404466]
[1625488859175,7.22942921,33510.0,33509.0,0.20404466]
[1625488859373,7.22942921,33510.0,33509.0,0.15074466]
[1625488859474,7.22942921,33510.0,33509.0,0.13944466]
[1625488859574,11.48282921,33510.0,33509.0,0.11174466]
[1625488859824,11.48282921,33510.0,33509.0,0.06994466]
[1625488859924,13.25015605,33510.0,33509.0,0.06994466]
[1625488860624,13.25015605,33510.0,33509.0,0.05244466]
[1625488860725,13.25015605,33510.0,33502.0,1.23296979]
[1625488861027,0.01552488,33509.0,33503.0,0.00403975]
[1625488861125,0.13352488,33509.0,33503.0,0.00403975]
[1625488861226,6.5398019,33504.0,33503.0,0.00403975]
[1625488861427,6.5988019,33504.0,33503.0,0.00403975]
[1625488861529,6.6578019,33504.0,33503.0,0.00403975]
[1625488861631,6.6578019,33504.0,33502.0,0.00403979]
[1625488861878,0.72172632,33503.0,33501.0,1.23347639]
[1625488861978,1.05903632,33503.0,33501.0,1.23347639]
[1625488862082,1.11803632,33503.0,33501.0,1.23347639]
[1625488862179,1.17703632,33503.0,33502.0,0.00403212]
[1625488862731,7.71152029,33503.0,33502.0,0.00403212]
[1625488862980,7.71152029,33503.0,33501.0,0.00403216]
[1625488863730,4.9452474,33502.0,33501.0,0.00403216]
[1625488863831,6.53468399,33502.0,33501.0,0.00403216]
[1625488863933,6.65268399,33502.0,33501.0,0.00403216]
[1625488864137,6.75743724,33502.0,33500.0,0.00403245]
[1625488864432,6.75743724,33502.0,33501.0,0.00403245]
[1625488864635,6.74188399,33502.0,33501.0,0.00403245]
[1625488864935,6.75743736,33502.0,33499.0,0.0040325]
[1625488865039,6.75743736,33502.0,33501.0,0.2]
[1625488865134,6.66823736,33502.0,33501.0,0.2]
[1625488865235,6.65268399,33502.0,33501.0,0.2]
[1625488865436,6.66823736,33502.0,33501.0,0.2040325]
[1625488866237,6.65268399,33502.0,33501.0,0.2040325]
[1625488868688,6.65268399,33502.0,33501.0,0.2]
[1625488871397,6.65268399,33502.0,33501.0,0.0001]
[1625488872246,6.74178399,33502.0,33501.0,0.0001]
[1625488884529,7.70408575,33502.0,33501.0,0.0001]
[1625488887686,7.7196526,33502.0,33501.0,0.0001]
[1625488887784,6.75735084,33502.0,33501.0,0.0001]
[1625488888636,7.7196526,33502.0,33501.0,0.0001]
[1625488890037,0.0589,33500.0,33494.0,0.00402914]
[1625488890248,0.1179,33500.0,33494.0,0.00402914]
[1625488890339,0.51556769,33499.0,33489.0,0.14172271]
[1625488890440,0.059,33494.0,33489.0,0.14172271]
[1625488890542,0.26398,33494.0,33489.0,0.05392271]
[1625488890643,1.40738625,33491.0,33490.0,0.00403029]
[1625488890741,1.46638625,33491.0,33490.0,0.00403029]
[1625488890842,6.42356843,33491.0,33483.0,1.23079736]
[1625488890941,0.059,33490.0,33483.0,1.23079736]
[1625488891043,0.118,33490.0,33483.0,1.23079736]
[1625488891143,0.559,33490.0,33483.0,1.23079736]
[1625488891243,0.618,33490.0,33483.0,1.23079736]
[1625488891345,0.118,33490.0,33483.0,1.23079736]
[1625488891444,2.28432584,33484.0,33472.0,1.5826101]
[1625488891544,2.59026584,33484.0,33472.0,1.5826101]
[1625488891644,2.64926584,33484.0,33472.0,1.5826101]
[1625488891946,0.0879623,33478.0,33473.0,0.00402657]
[1625488892044,0.2059623,33478.0,33473.0,0.00402657]
[1625488892244,0.2059623,33478.0,33472.0,0.00402659]
[1625488892444,0.2059623,33478.0,33474.0,0.00402968]
[1625488892646,0.72172632,33475.0,33474.0,1.41092368]
[1625488892745,0.94063632,33475.0,33474.0,1.406894]
[1625488892846,1.05863632,33475.0,33474.0,1.406894]
[1625488893046,1.05863632,33475.0,33474.0,1.41092364]
[1625488893497,1.05863632,33475.0,33474.0,1.61092364]
[1625488894249,1.05863632,33475.0,33474.0,0.20402964]
[1625488895154,1.05863632,33475.0,33474.0,1.60986369]
[1625488895448,1.05863632,33475.0,33474.0,0.20402964]
[1625488895548,0.99963632,33475.0,33474.0,0.20402964]
[1625488895747,1.05863632,33475.0,33474.0,0.20402964]
[1625488895849,0.99963632,33475.0,33474.0,0.20402964]
[1625488896302,0.72172632,33475.0,33474.0,0.20402964]
[1625488896601,0.72172632,33475.0,33474.0,1.60908676]
[1625488896701,0.72172632,33475.0,33474.0,1.8496622]
[1625488896800,0.72172632,33475.0,33474.0,1.9086622]
[1625488897707,0.72172632,33475.0,33474.0,1.91999264]
[1625488897802,0.72172632,33475.0,33474.0,2.20689264]
[1625488897952,0.72172632,33475.0,33474.0,3.78701012]
[1625488901058,0.72172632,33475.0,33474.0,3.72801012]
[1625488901259,0.72172632,33475.0,33474.0,2.14789264]
[1625488901362,0.72172632,33475.0,33474.0,1.9086622]
[1625488901460,0.72172632,33475.0,33474.0,1.8496622]
[1625488902423,0.72172632,33475.0,33474.0,1.9086622]
[1625488903112,0.72172632,33475.0,33474.0,1.91999035]
[1625488903316,0.72172632,33475.0,33474.0,3.49969594]
[1625488903864,0.48115088,33475.0,33474.0,3.49969594]
[1625488903965,0.6149751,33486.0,33474.0,3.49969594]
[1625488904167,0.6149751,33486.0,33475.0,0.01132085]
[1625488904268,0.0879539,33486.0,33475.0,0.07434954]
[1625488904517,0.0879539,33486.0,33476.0,0.01534654]
[1625488904619,0.0879539,33486.0,33479.0,1.40318637]
[1625488904717,0.0879539,33486.0,33479.0,1.46218637]
[1625488904819,0.38752934,33486.0,33485.0,0.24057544]
[1625488904920,0.29957544,33486.0,33485.0,0.24057544]
[1625488905368,0.29957544,33486.0,33485.0,0.24460377]
[1625488906370,0.29957544,33486.0,33485.0,0.24057544]
[1625488906671,0.29957544,33486.0,33485.0,0.24460383]
[1625488907071,0.35857544,33486.0,33485.0,0.24460383]
[1625488907222,0.29957544,33486.0,33485.0,0.24460383]
[1625488908229,0.35857544,33486.0,33485.0,0.24460383]
[1625488908880,0.44656409,33486.0,33485.0,0.24460383]
[1625488909080,0.38756409,33486.0,33485.0,0.24460383]
[1625488909280,0.44656409,33486.0,33485.0,0.24460383]
[1625488909633,0.38756409,33486.0,33485.0,0.24460383]
[1625488909749,6.409e-05,33486.0,33485.0,0.24460383]
[1625488909845,0.61518651,33487.0,33485.0,0.30360383]
[1625488910135,0.61518651,33487.0,33486.0,0.0040278]
[1625488910234,8.651e-05,33487.0,33486.0,0.0630278]
[1625488910341,0.6151775,33491.0,33486.0,0.0630278]
[1625488910684,0.6151775,33491.0,33487.0,0.00402753]
[1625488910784,0.6151775,33491.0,33487.0,0.06302753]
[1625488910885,0.6151775,33491.0,33490.0,0.48115088]
[1625488910983,0.6151775,33491.0,33490.0,0.82920088]
[1625488911083,0.6741775,33491.0,33490.0,0.82920088]
[1625488911286,0.059,33491.0,33490.0,0.83322839]
[1625488911588,0.059,33491.0,33490.0,0.77422839]
[1625488911689,0.58628145,33491.0,33490.0,0.77422839]
[1625488912189,1.28881101,33491.0,33490.0,0.48517839]
[1625488912689,2.34305864,33491.0,33490.0,0.48517839]
[1625488913292,1.28881101,33491.0,33490.0,0.48517839]
[1625488914543,2.34397959,33491.0,33490.0,0.48517839]
[1625488916100,3.57514156,33491.0,33490.0,0.48517839]
[1625488916200,3.79234156,33491.0,33490.0,0.48517839]
[1625488916499,5.20027215,33491.0,33490.0,0.48517839]
[1625488919356,5.25927215,33491.0,33490.0,0.48517839]
[1625488919457,6.84341076,33491.0,33490.0,0.48517839]
[1625488919580,6.85899844,33491.0,33490.0,0.48115088]
[1625488919660,6.79999844,33491.0,33490.0,0.18157544]
[1625488919870,6.85899844,33491.0,33490.0,0.18157544]
[1625488920058,6.84341076,33491.0,33490.0,0.18157544]
[1625488920317,6.85899836,33491.0,33490.0,0.18157544]
[1625488920912,7.34014924,33491.0,33490.0,0.18157544]
[1625488925075,9.09590058,33491.0,33490.0,0.18157544]
[1625488929136,7.34014924,33491.0,33490.0,0.18157544]
[1625488929637,9.09748195,33491.0,33490.0,0.18157544]
[1625488933499,7.34014924,33491.0,33490.0,0.18157544]
[1625488933912,9.0979639,33491.0,33490.0,0.18157544]
[1625488934602,9.0823763,33491.0,33490.0,0.18157544]
[1625488934852,9.09791941,33491.0,33490.0,0.18157544]
[1625488934951,9.09791941,33491.0,33490.0,0.38157544]
[1625488935051,7.34010475,33491.0,33490.0,0.38157544]
[1625488935504,9.09815384,33491.0,33490.0,0.38157544]
[1625488937717,9.03915384,33491.0,33490.0,0.38157544]
[1625488937817,9.02361073,33491.0,33490.0,0.38157544]
[1625488938161,7.26556164,33491.0,33490.0,0.38157544]
[1625488938661,7.32456164,33491.0,33490.0,0.38157544]
[1625488939411,7.26556164,33491.0,33490.0,0.38157544]
[1625488939511,7.35566164,33491.0,33490.0,0.38157544]
[1625488939613,7.26556164,33491.0,33490.0,0.38157544]
[1625488940563,7.28110504,33491.0,33490.0,0.38157544]